[Event "European Womens-ch 2025"]
[Site "Rhodes"]
[Date "2025.04.10"]
[Round "10.29"]
[White "Mkrtchyan, Mariam"]
[Black "Ibrahimova, Sabina"]
[Result "1-0"]
[Annotator "ChessBase"]
[ECO "D40"]
[WhiteElo "2282"]
[BlackElo "2199"]
[PlyCount "91"]
[EventDate "2025.03.29"]
[EventType "swiss"]
[EventCountry "GRE"]
[SourceTitle "playchess.com"]
[Source "ChessBase"]
[SourceQuality "1"]
[TimeControl "40/5400+30:1800+30"]

1. d4 {[%emt 0:00:39]} d5 {[%emt 0:03:57]} 2. c4 {[%emt 0:00:06]} e6 {[%emt 0:00:07]} 3. Nf3 {[%emt 0:00:18]} Nf6 {[%emt 0:00:13]} 4. Nc3 {[%emt 0:00:06]} c5 {[%emt 0:00:19]} 5. e3 {[%emt 0:00:15]} Nc6 {[%emt 0:08:50]} 6. a3 {[%emt 0:00:14]} dxc4 {[%emt 0:01:00]} 7. Bxc4 {[%emt 0:00:06]} a6 {[%emt 0:00:15]} 8. O-O {[%emt 0:00:15]} b5 {[%emt 0:01:56]} 9. Ba2 {[%emt 0:00:06]} Be7 {[%emt 0:00:56]} 10. dxc5 {[%emt 0:14:32]} Qxd1 {[%emt 0:11:51]} 11. Rxd1 {[%emt 0:00:43]} Bxc5 {[%emt 0:00:19]} 12. b4 {[%emt 0:08:27]} Bb6 {[%emt 0:08:42]} 13. Ng5 {[%emt 0:00:59]} O-O {[%emt 0:03:52]} 14. Bb2 {[%emt 0:05:13]} Bb7 {[%emt 0:04:59]} 15. Nge4 {[%emt 0:02:34]} Nxe4 {[%emt 0:01:07]} 16. Nxe4 {[%emt 0:02:54]} Rad8 {[%emt 0:00:25]} 17. Nc5 {[%emt 0:05:10]} Bc8 {[%emt 0:01:49]} 18. Rdc1 {[%emt 0:02:55]} Ne7 {[%emt 0:02:17]} 19. Rc2 {[%emt 0:03:15]} a5 {[%emt 0:09:04]} 20. bxa5 {[%emt 0:08:03]} Bxa5 {[%emt 0:00:47]} 21. h3 {[%emt 0:04:12]} Nf5 {[%emt 0:18:49]} 22. Rb1 {[%emt 0:05:55]} b4 {[%emt 0:00:30]} 23. Nb3 {[%emt 0:35:03]} Bb6 24. Rc6 {[%emt 0:00:00]} Ba7 {[%emt 0:02:31]} 25. axb4 {[%emt 0:00:00]} Bb8 {[%emt 0:01:26]} 26. Rcc1 {[%emt 0:00:00]} Bb7 {[%emt 0:04:12]} 27. Nc5 {[%emt 0:00:00]} Ba8 28. Bc4 {[%emt 0:00:00]} Nh4 29. Bf1 {[%emt 0:00:00]} Rd5 30. Rc4 {[%emt 0:03:30]} Ng6 {[%emt 0:15:17]} 31. Rd4 {[%emt 0:00:30]} Rxd4 {[%emt 0:00:00]} 32. Bxd4 {[%emt 0:00:00]} Bd6 33. Na6 {[%emt 0:00:00]} Rc8 34. b5 {[%emt 0:00:00]} h6 35. Rd1 {[%emt 0:00:00]} Ba3 36. Bb6 {[%emt 0:02:30]} Be7 {[%emt 0:01:48]} 37. Bc7 {[%emt 0:00:00]} Bf6 {[%emt 0:01:42]} 38. b6 {[%emt 0:00:00]} Be5 39. f4 {[%emt 0:00:00]} Bxc7 40. bxc7 {[%emt 0:00:00]} Bb7 41. Rd8+ {[%emt 0:08:22]} Kh7 42. Rxc8 {[%emt 0:24:38]} Bxc8 {[%emt 0:32:30]} 43. Nc5 {[%emt 0:00:30]} Ne7 {[%emt 0:00:00]} 44. Ne4 {[%emt 0:00:00]} Bd7 {[%emt 0:00:00]} 45. Nd6 {[%emt 0:00:00]} Nc8 {[%emt 0:01:30]} 46. Bb5 {[%emt 0:01:30]} 1-0

[Event "European Womens-ch 2025"]
[Site "Rhodes"]
[Date "2025.04.10"]
[Round "10.30"]
[White "Terbe, Zsuzsanna"]
[Black "Wagner, Dinara"]
[Result "0-1"]
[Annotator "RC"]
[ECO "E47"]
[WhiteElo "2179"]
[BlackElo "2440"]
[PlyCount "114"]
[EventDate "2025.03.29"]
[EventType "swiss"]
[EventCountry "GRE"]
[SourceTitle "playchess.com"]
[Source "ChessBase"]
[SourceQuality "1"]
[TimeControl "40/5400+30:1800+30"]

1. d4 {[%emt 0:01:45]} Nf6 {[%emt 0:00:27]} 2. c4 {[%emt 0:00:11]} e6 {[%emt 0:00:15]} 3. Nc3 {[%emt 0:00:06]} Bb4 {[%emt 0:00:05]} 4. e3 {[%emt 0:00:06]} O-O {[%emt 0:00:20]} 5. Bd3 {[%emt 0:00:15]} c5 {[%emt 0:00:18]} 6. a3 {[%emt 0:00:27]} cxd4 {[%emt 0:02:24]} 7. axb4 {[%emt 0:00:34]} dxc3 {[%emt 0:00:05]} 8. Ne2 {[%emt 0:00:24]} d5 {[%emt 0:17:25]} 9. c5 {[%emt 0:04:02]} b6 {[%emt 0:08:48]} 10. Nxc3 {[%emt 0:05:49]} bxc5 {[%emt 0:00:13]} 11. bxc5 {[%emt 0:00:21]} Nc6 {[%emt 0:00:03]} 12. Bb5 {[%emt 0:19:23]} Bd7 {[%emt 0:07:46]} 13. O-O {[%emt 0:09:13]} Qe7 {[%emt 0:05:48]} 14. Bxc6 {[%emt 0:02:44]} Bxc6 {[%emt 0:00:04]} 15. b4 {[%emt 0:00:51]} Rfb8 {[%emt 0:04:53]} 16. Rb1 {[%emt 0:06:34]} a5 {[%emt 0:10:44]} 17. Ba3 {[%emt 0:09:37]} axb4 {[%emt 0:00:08]} 18. Bxb4 {[%emt 0:01:44]} e5 {[%emt 0:01:30]} 19. Qd2 {[%emt 0:03:40]} Rd8 {[%emt 0:07:57]} 20. Rfe1 {[%emt 0:05:02]} Qd7 {[%emt 0:02:52]} 21. f3 {[%emt 0:11:27]} h6 {[%emt 0:06:53]} 22. Ne2 {[%emt 0:02:42]} d4 {[%emt 0:01:27]} 23. Nc1 {[%emt 0:05:32]} dxe3 {[%emt 0:08:31]} 24. Qxd7 {[%emt 0:01:04]} Rxd7 {[%emt 0:00:03]} 25. Rxe3 {[%emt 0:00:06]} Rb8 {[%emt 0:05:06]} 26. Reb3 {[%emt 0:03:14]} Rd1+ {[%emt 0:02:52]} 27. Kf2 {[%emt 0:00:04]} Bd5 {[%emt 0:03:47]} 28. R3b2 {[%emt 0:03:15]} Bc4 {[%emt 0:00:26]} 29. c6 {[%emt 0:03:00]} Rc8 {[%emt 0:00:28]} 30. Nb3 {[%emt 0:01:08]} Bxb3 {[%emt 0:02:10]} 31. Rxb3 {[%emt 0:00:02]} Rxb1 {[%emt 0:00:03]} 32. Rxb1 {[%emt 0:00:06]} Rxc6 {[%emt 0:00:01]} 33. Re1 {[%emt 0:01:07]} Nd7 {[%emt 0:00:33]} 34. Re2 {[%emt 0:00:16]} f6 {[%emt 0:00:11]} 35. Rd2 {[%emt 0:01:16]} Rc7 {[%emt 0:01:03]} 36. Bd6 {[%emt 0:00:19]} Rb7 {[%emt 0:00:24]} 37. h4 {[%emt 0:00:56]} h5 {[%emt 0:01:45]} 38. Rc2 {[%emt 0:00:22]} Kf7 {[%emt 0:00:25]} 39. Rc8 {[%emt 0:00:39]} Ke6 {[%emt 0:00:48]} 40. Ba3 {[%emt 0:00:00]} Kf5 {[%emt 0:00:00]} 41. Rh8 {[%emt 0:03:22]} Ra7 {[%emt 0:06:07]} 42. Bd6 {[%emt 0:02:05]} g6 {[%emt 0:02:26]} 43. Re8 {[%emt 0:01:40]} Nb6 {[%emt 0:01:08]} 44. Rf8 {[%emt 0:10:28]} Nd5 {[%emt 0:00:50]} 45. Bc5 {[%emt 0:01:13]} Ra5 {[%emt 0:03:59]} 46. Bd6 {[%emt 0:00:55]} Ra6 {[%emt 0:00:37]} 47. Bc5 {[%emt 0:01:06]} Ra5 {[%emt 0:04:29]} 48. Bd6 {[%emt 0:01:00]} Ra4 {[%emt 0:02:15]} 49. g3 {[%emt 0:04:10]} Ra2+ {[%emt 0:00:35]} 50. Kg1 {[%emt 0:00:11]} e4 {[%emt 0:03:11]} 51. fxe4+ {[%emt 0:03:01]} Kxe4 {[%emt 0:00:02]} 52. Bc5 {[%emt 0:00:23]} Kf3 {[%emt 0:01:50]} 53. Rg8 {[%emt 0:01:07]} Rg2+ {[%emt 0:00:54]} 54. Kh1 {[%emt 0:00:06]} Rxg3 {[%emt 0:00:11]} 55. Rd8 {[%emt 0:01:19]} Nf4 {[%emt 0:00:39]} 56. Bg1 {[%emt 0:00:39]} Rh3+ {[%emt 0:01:34]} 57. Bh2 {[%emt 0:00:05]} Rxh4 {[%emt 0:00:05]} 0-1

[Event "European Womens-ch 2025"]
[Site "Rhodes"]
[Date "2025.04.10"]
[Round "10.31"]
[White "Eric, Jovana"]
[Black "Atalik, Ekaterina"]
[Result "0-1"]
[Annotator "RC"]
[ECO "B12"]
[WhiteElo "2147"]
[BlackElo "2375"]
[PlyCount "108"]
[EventDate "2025.03.29"]
[EventType "swiss"]
[EventCountry "GRE"]
[SourceTitle "playchess.com"]
[Source "ChessBase"]
[SourceQuality "1"]
[TimeControl "40/5400+30:1800+30"]

1. e4 {[%emt 0:00:03]} c6 {[%emt 0:00:07]} 2. d4 {[%emt 0:00:06]} d5 {[%emt 0:00:11]} 3. e5 {[%emt 0:00:06]} c5 {[%emt 0:00:13]} 4. c3 {[%emt 0:00:24]} Nc6 {[%emt 0:00:43]} 5. Be2 {[%emt 0:00:26]} Bf5 {[%emt 0:02:16]} 6. Nf3 {[%emt 0:00:24]} e6 {[%emt 0:01:30]} 7. O-O {[%emt 0:00:37]} Nge7 {[%emt 0:01:51]} 8. dxc5 {[%emt 0:04:49]} Ng6 {[%emt 0:02:53]} 9. b4 {[%emt 0:00:46]} Be7 {[%emt 0:03:16]} 10. Nd4 {[%emt 0:05:36]} Bxb1 {[%emt 0:06:02]} 11. Rxb1 {[%emt 0:00:34]} Ngxe5 {[%emt 0:00:17]} 12. f4 {[%emt 0:03:11]} Nd7 {[%emt 0:02:54]} 13. Bd3 {[%emt 0:06:10]} O-O {[%emt 0:02:08]} 14. Be3 {[%emt 0:01:45]} Bf6 {[%emt 0:02:12]} 15. Qc2 {[%emt 0:03:20]} g6 {[%emt 0:00:55]} 16. a4 {[%emt 0:20:56]} Re8 {[%emt 0:07:44]} 17. Nb5 {[%emt 0:08:44]} Be7 {[%emt 0:02:20]} 18. Nd6 {[%emt 0:06:48]} Bxd6 {[%emt 0:00:34]} 19. cxd6 {[%emt 0:00:05]} Nf6 {[%emt 0:03:54]} 20. b5 {[%emt 0:01:29]} Na5 {[%emt 0:01:12]} 21. Bd4 {[%emt 0:00:16]} b6 {[%emt 0:02:11]} 22. Rbe1 {[%emt 0:05:48]} Nb7 {[%emt 0:07:33]} 23. f5 {[%emt 0:05:52]} exf5 {[%emt 0:00:16]} 24. Rxe8+ {[%emt 0:02:47]} Nxe8 {[%emt 0:00:04]} 25. Bxf5 {[%emt 0:02:01]} gxf5 {[%emt 0:08:18]} 26. Qxf5 {[%emt 0:00:12]} Nbxd6 {[%emt 0:00:19]} 27. Qxd5 {[%emt 0:01:07]} Rc8 {[%emt 0:02:50]} 28. Rf3 {[%emt 0:08:10]} Kf8 {[%emt 0:12:25]} 29. Qh5 {[%emt 0:03:06]} Ke7 {[%emt 0:05:49]} 30. Qh3 {[%emt 0:01:49]} f6 {[%emt 0:06:39]} 31. Re3+ {[%emt 0:02:16]} Kf8 {[%emt 0:00:19]} 32. Qh6+ {[%emt 0:02:11]} Ng7 {[%emt 0:00:12]} 33. Rf3 {[%emt 0:01:00]} Nde8 {[%emt 0:03:51]} 34. Qxh7 {[%emt 0:00:43]} Kf7 {[%emt 0:02:21]} 35. Rf1 {[%emt 0:01:46]} Qd5 {[%emt 0:01:10]} 36. h3 {[%emt 0:00:48]} Rd8 {[%emt 0:01:25]} 37. Qh4 {[%emt 0:01:20]} Rd6 {[%emt 0:00:27]} 38. Qg4 {[%emt 0:00:43]} Re6 {[%emt 0:00:29]} 39. Qf4 {[%emt 0:00:36]} Re2 {[%emt 0:03:38]} 40. Qg4 {[%emt 0:00:00]} Qe4 {[%emt 0:00:00]} 41. a5 {[%emt 0:15:31]} Qxg4 {[%emt 0:04:51]} 42. hxg4 {[%emt 0:00:05]} bxa5 {[%emt 0:00:45]} 43. Ra1 {[%emt 0:02:49]} Ne6 {[%emt 0:04:16]} 44. Bxa7 {[%emt 0:00:17]} Nd6 {[%emt 0:00:59]} 45. Rxa5 {[%emt 0:01:51]} Rb2 {[%emt 0:01:16]} 46. Bf2 {[%emt 0:02:52]} Nxb5 {[%emt 0:00:50]} 47. c4 {[%emt 0:00:18]} Nbc7 {[%emt 0:03:02]} 48. Bg3 {[%emt 0:02:54]} Rb7 {[%emt 0:00:06]} 49. Rf5 {[%emt 0:00:33]} Kg6 {[%emt 0:01:25]} 50. Kh2 {[%emt 0:02:42]} Rb4 {[%emt 0:01:04]} 51. Bh4 {[%emt 0:03:05]} Ne8 {[%emt 0:01:06]} 52. Rf2 {[%emt 0:01:57]} Rxc4 {[%emt 0:00:43]} 53. Re2 {[%emt 0:00:07]} N8g7 {[%emt 0:00:54]} 54. Rf2 {[%emt 0:00:25]} Ng5 {[%emt 0:00:10]} 0-1

[Event "European Womens-ch 2025"]
[Site "Rhodes"]
[Date "2025.04.10"]
[Round "10.32"]
[White "Yildiz, Elif Zeren"]
[Black "Unuk, Laura"]
[Result "0-1"]
[Annotator "ChessBase"]
[ECO "B10"]
[WhiteElo "2160"]
[BlackElo "2301"]
[PlyCount "144"]
[EventDate "2025.03.29"]
[EventType "swiss"]
[EventCountry "GRE"]
[SourceTitle "playchess.com"]
[Source "ChessBase"]
[SourceQuality "1"]
[TimeControl "40/5400+30:1800+30"]

1. e4 {[%emt 0:00:03]} c6 {[%emt 0:00:13]} 2. Nf3 {[%emt 0:00:06]} d5 {[%emt 0:00:07]} 3. d3 {[%emt 0:00:05]} g6 {[%emt 0:00:16]} 4. e5 {[%emt 0:00:04]} Bg7 {[%emt 0:00:07]} 5. d4 {[%emt 0:00:08]} f6 {[%emt 0:00:18]} 6. h3 {[%emt 0:09:22]} fxe5 {[%emt 0:06:58]} 7. Nxe5 {[%emt 0:03:23]} Nh6 {[%emt 0:01:15]} 8. Bd3 {[%emt 0:05:36]} Nf5 {[%emt 0:01:43]} 9. c3 {[%emt 0:01:49]} O-O {[%emt 0:00:57]} 10. O-O {[%emt 0:01:31]} c5 {[%emt 0:02:44]} 11. Re1 {[%emt 0:05:53]} Nc6 {[%emt 0:03:52]} 12. Bxf5 {[%emt 0:04:27]} Bxf5 {[%emt 0:07:38]} 13. Bg5 {[%emt 0:06:00]} Nxe5 {[%emt 0:16:58]} 14. dxe5 {[%emt 0:00:04]} Be6 {[%emt 0:00:24]} 15. Bh4 {[%emt 0:09:18]} Qe8 {[%emt 0:08:23]} 16. Nd2 {[%emt 0:07:02]} Rd8 {[%emt 0:01:16]} 17. Qb3 {[%emt 0:03:54]} b6 {[%emt 0:03:22]} 18. Rad1 {[%emt 0:02:31]} h6 {[%emt 0:02:16]} 19. Nf1 {[%emt 0:03:57]} g5 {[%emt 0:08:08]} 20. Bg3 {[%emt 0:00:07]} Qc6 {[%emt 0:03:21]} 21. Qc2 {[%emt 0:02:08]} Bf5 {[%emt 0:00:44]} 22. Qc1 {[%emt 0:00:05]} Qg6 {[%emt 0:01:52]} 23. Ne3 {[%emt 0:03:35]} Be6 {[%emt 0:03:50]} 24. Qc2 {[%emt 0:02:51]} Qf7 {[%emt 0:01:46]} 25. Qa4 {[%emt 0:01:01]} Rd7 {[%emt 0:06:54]} 26. Rd2 {[%emt 0:02:12]} h5 {[%emt 0:01:52]} 27. h4 {[%emt 0:02:31]} g4 {[%emt 0:07:48]} 28. Red1 {[%emt 0:01:08]} Rfd8 {[%emt 0:00:03]} 29. b3 {[%emt 0:00:23]} Bh6 {[%emt 0:00:56]} 30. Rd3 {[%emt 0:01:38]} Kg7 {[%emt 0:00:21]} 31. Qc6 {[%emt 0:10:35]} d4 {[%emt 0:02:23]} 32. cxd4 {[%emt 0:00:05]} Rxd4 {[%emt 0:01:25]} 33. Qb5 {[%emt 0:00:06]} Qg6 {[%emt 0:01:15]} 34. Rxd4 {[%emt 0:01:02]} Rxd4 {[%emt 0:00:49]} 35. Qe2 {[%emt 0:00:32]} Qe4 {[%emt 0:00:35]} 36. Re1 {[%emt 0:02:56]} Qd3 {[%emt 0:00:36]} 37. Kf1 {[%emt 0:03:08]} a5 {[%emt 0:03:21]} 38. Qxd3 {[%emt 0:02:02]} Rxd3 {[%emt 0:00:03]} 39. Ke2 {[%emt 0:00:08]} Rd4 {[%emt 0:00:06]} 40. Rd1 {[%emt 0:00:00]} a4 {[%emt 0:00:00]} 41. Rxd4 {[%emt 0:09:31]} cxd4 {[%emt 0:02:59]} 42. Nc2 {[%emt 0:04:55]} axb3 {[%emt 0:02:27]} 43. axb3 {[%emt 0:00:04]} Bxb3 {[%emt 0:00:08]} 44. Nxd4 {[%emt 0:00:32]} Bc4+ {[%emt 0:00:08]} 45. Kd1 {[%emt 0:00:02]} Kg6 {[%emt 0:04:13]} 46. Kc2 {[%emt 0:03:29]} Bf1 {[%emt 0:02:09]} 47. Ne6 {[%emt 0:04:34]} Kf5 {[%emt 0:03:18]} 48. Nd4+ {[%emt 0:00:05]} Ke4 {[%emt 0:00:34]} 49. Nc6 {[%emt 0:00:07]} e6 {[%emt 0:01:43]} 50. Nd8 {[%emt 0:06:49]} Kd5 {[%emt 0:10:31]} 51. Nf7 {[%emt 0:00:05]} Bg7 {[%emt 0:00:44]} 52. f3 {[%emt 0:00:05]} Bxg2 {[%emt 0:00:06]} 53. fxg4 {[%emt 0:00:04]} Be4+ {[%emt 0:00:14]} 54. Kd2 {[%emt 0:01:52]} Bg6 {[%emt 0:00:21]} 55. Nd6 {[%emt 0:00:36]} hxg4 {[%emt 0:01:18]} 56. Ke3 {[%emt 0:00:09]} Bh5 {[%emt 0:02:58]} 57. Bh2 {[%emt 0:03:52]} Bxe5 {[%emt 0:02:02]} 58. Bxe5 {[%emt 0:00:06]} Kxe5 {[%emt 0:00:01]} 59. Nc4+ {[%emt 0:00:07]} Kf5 {[%emt 0:00:04]} 60. Kf2 {[%emt 0:01:30]} Kf4 {[%emt 0:02:06]} 61. Nxb6 {[%emt 0:00:06]} g3+ {[%emt 0:00:38]} 62. Kg2 {[%emt 0:00:05]} Bf3+ {[%emt 0:02:33]} 63. Kh3 {[%emt 0:00:24]} Bg4+ {[%emt 0:00:04]} 64. Kg2 {[%emt 0:00:10]} Bf3+ {[%emt 0:00:11]} 65. Kh3 {[%emt 0:00:04]} e5 {[%emt 0:00:40]} 66. h5 {[%emt 0:04:26]} Bxh5 {[%emt 0:00:57]} 67. Kg2 {[%emt 0:00:07]} Bf3+ {[%emt 0:00:08]} 68. Kh3 {[%emt 0:00:06]} Bc6 {[%emt 0:01:18]} 69. Nc4 {[%emt 0:00:37]} Bb5 {[%emt 0:00:57]} 70. Nd2 {[%emt 0:03:34]} Ke3 {[%emt 0:00:22]} 71. Nb1 {[%emt 0:00:38]} Kf2 {[%emt 0:00:09]} 72. Nc3 {[%emt 0:00:32]} Bd7+ {[%emt 0:00:29]} 0-1

[Event "European Womens-ch 2025"]
[Site "Rhodes"]
[Date "2025.04.10"]
[Round "10.33"]
[White "Zimina, Olga"]
[Black "Rodshtein, Tereza"]
[Result "0-1"]
[Annotator "ChessBase"]
[ECO "D02"]
[WhiteElo "2293"]
[BlackElo "2171"]
[PlyCount "32"]
[EventDate "2025.03.29"]
[EventType "swiss"]
[EventCountry "GRE"]
[SourceTitle "playchess.com"]
[Source "ChessBase"]
[SourceQuality "1"]
[TimeControl "40/5400+30:1800+30"]

1. d4 {[%emt 0:00:17]} d5 {[%emt 0:00:09]} 2. Nf3 {[%emt 0:00:12]} Bg4 {[%emt 0:06:19]} 3. Ne5 {[%emt 0:02:20]} Bf5 {[%emt 0:08:51]} 4. c4 {[%emt 0:02:20]} f6 {[%emt 0:05:40]} 5. Nf3 {[%emt 0:02:55]} dxc4 {[%emt 0:00:17]} 6. Nc3 {[%emt 0:01:30]} e5 {[%emt 0:05:48]} 7. e4 {[%emt 1:24:26]} Bg4 {[%emt 0:00:18]} 8. Bxc4 {[%emt 0:00:00]} exd4 {[%emt 0:08:00]} 9. Qb3 {[%emt 0:00:00]} dxc3 {[%emt 0:01:07]} 10. Bxg8 {[%emt 0:00:00]} Rxg8 {[%emt 0:19:48]} 11. Qxg8 {[%emt 0:00:00]} Qd3 {[%emt 0:00:30]} 12. bxc3 {[%emt 0:00:00]} Nc6 {[%emt 0:14:46]} 13. Qd5 {[%emt 0:00:00]} Qxc3+ {[%emt 0:00:14]} 14. Qd2 {[%emt 0:00:00]} Qxa1 {[%emt 0:02:01]} 15. O-O {[%emt 0:00:00]} Bxf3 {[%emt 0:01:25]} 16. gxf3 {[%emt 0:00:00]} Qd4 {[%emt 0:01:19]} 0-1

[Event "European Womens-ch 2025"]
[Site "Rhodes"]
[Date "2025.04.10"]
[Round "10.34"]
[White "Nadzamova, Viktoria"]
[Black "Smietanska, Wiktoria"]
[Result "1-0"]
[Annotator "ChessBase"]
[ECO "B23"]
[WhiteElo "2122"]
[BlackElo "2254"]
[PlyCount "67"]
[EventDate "2025.03.29"]
[EventType "swiss"]
[EventCountry "GRE"]
[SourceTitle "playchess.com"]
[Source "ChessBase"]
[SourceQuality "1"]
[TimeControl "40/5400+30:1800+30"]

1. e4 {[%emt 0:00:06]} c5 {[%emt 0:00:07]} 2. Nc3 {[%emt 0:00:35]} a6 {[%emt 0:00:19]} 3. g3 {[%emt 0:00:18]} b5 {[%emt 0:00:19]} 4. Bg2 {[%emt 0:00:06]} Bb7 {[%emt 0:00:13]} 5. d3 {[%emt 0:01:02]} e6 {[%emt 0:00:31]} 6. Nh3 {[%emt 0:01:23]} Nf6 {[%emt 0:03:26]} 7. O-O {[%emt 0:00:18]} d6 {[%emt 0:04:44]} 8. f4 {[%emt 0:03:17]} Be7 {[%emt 0:03:11]} 9. Bd2 {[%emt 0:10:02]} O-O {[%emt 0:02:30]} 10. Ne2 {[%emt 0:04:05]} Qb6 {[%emt 0:07:22]} 11. Kh1 {[%emt 0:07:49]} d5 {[%emt 0:02:47]} 12. e5 {[%emt 0:02:02]} Nfd7 {[%emt 0:00:35]} 13. g4 {[%emt 0:01:06]} d4 {[%emt 0:02:56]} 14. Ng3 {[%emt 0:01:01]} c4 {[%emt 0:14:11]} 15. Qe2 {[%emt 0:02:02]} Bxg2+ {[%emt 0:02:23]} 16. Kxg2 {[%emt 0:00:45]} Qc6+ {[%emt 0:02:28]} 17. Kg1 {[%emt 0:01:28]} Qd5 {[%emt 0:05:38]} 18. Ne4 {[%emt 0:05:46]} Nc6 {[%emt 0:05:13]} 19. Rf3 {[%emt 0:02:24]} Rac8 {[%emt 0:05:20]} 20. Nhf2 {[%emt 0:03:07]} Rc7 {[%emt 0:07:55]} 21. Rh3 {[%emt 0:02:56]} cxd3 {[%emt 0:02:55]} 22. cxd3 {[%emt 0:00:22]} Nb4 {[%emt 0:08:30]} 23. g5 {[%emt 0:01:59]} Rfc8 {[%emt 0:06:21]} 24. Qh5 {[%emt 0:02:44]} Nf8 {[%emt 0:01:37]} 25. Rf1 {[%emt 0:16:37]} Rc2 {[%emt 0:05:48]} 26. Bxb4 {[%emt 0:02:51]} Bxb4 {[%emt 0:00:04]} 27. Ng4 {[%emt 0:00:09]} Be7 {[%emt 0:01:15]} 28. Ngf6+ {[%emt 0:00:39]} Bxf6 {[%emt 0:02:00]} 29. gxf6 {[%emt 0:00:21]} Rc1 {[%emt 0:01:09]} 30. fxg7 {[%emt 0:02:21]} Rxf1+ {[%emt 0:00:17]} 31. Kxf1 {[%emt 0:00:01]} Rc1+ {[%emt 0:00:14]} 32. Kf2 {[%emt 0:00:22]} Rc2+ {[%emt 0:00:12]} 33. Kg3 {[%emt 0:00:21]} Kxg7 {[%emt 0:02:01]} 34. Qh6+ {[%emt 0:00:09]} 1-0

[Event "European Womens-ch 2025"]
[Site "Rhodes"]
[Date "2025.04.10"]
[Round "10.35"]
[White "Dicen, Elis Denele"]
[Black "Jarocka, Liwia"]
[Result "1-0"]
[Annotator "ChessBase"]
[ECO "A49"]
[WhiteElo "2129"]
[BlackElo "2231"]
[PlyCount "97"]
[EventDate "2025.03.29"]
[EventType "swiss"]
[EventCountry "GRE"]
[SourceTitle "playchess.com"]
[Source "ChessBase"]
[SourceQuality "1"]
[TimeControl "40/5400+30:1800+30"]

1. Nf3 {[%emt 0:00:03]} Nf6 {[%emt 0:00:11]} 2. g3 {[%emt 0:00:08]} g6 {[%emt 0:00:09]} 3. Bg2 {[%emt 0:00:07]} Bg7 {[%emt 0:00:05]} 4. O-O {[%emt 0:00:18]} O-O {[%emt 0:00:08]} 5. d4 {[%emt 0:00:14]} a5 {[%emt 0:00:57]} 6. c4 {[%emt 0:00:25]} d6 {[%emt 0:00:24]} 7. Nc3 {[%emt 0:00:39]} Bf5 {[%emt 0:00:59]} 8. Nh4 {[%emt 0:05:04]} Be6 {[%emt 0:00:57]} 9. b3 {[%emt 0:04:52]} Qc8 {[%emt 0:00:19]} 10. Bb2 {[%emt 0:03:03]} c5 {[%emt 0:01:26]} 11. d5 {[%emt 0:04:56]} Bh3 {[%emt 0:03:48]} 12. Qc2 {[%emt 0:03:02]} Bxg2 {[%emt 0:00:54]} 13. Kxg2 {[%emt 0:00:27]} e5 {[%emt 0:08:12]} 14. e4 {[%emt 0:10:43]} Ne8 {[%emt 0:09:01]} 15. Qe2 {[%emt 0:06:43]} Qd8 {[%emt 0:00:33]} 16. Kh1 {[%emt 0:03:11]} Nd7 {[%emt 0:09:29]} 17. Ng2 {[%emt 0:02:23]} Nc7 {[%emt 0:03:13]} 18. Rae1 {[%emt 0:02:01]} Qe7 {[%emt 0:00:26]} 19. Qd3 {[%emt 0:05:26]} Rae8 {[%emt 0:01:25]} 20. f4 {[%emt 0:06:03]} f5 {[%emt 0:02:40]} 21. exf5 {[%emt 0:04:04]} gxf5 {[%emt 0:02:12]} 22. fxe5 {[%emt 0:01:33]} Nxe5 {[%emt 0:00:04]} 23. Qc2 {[%emt 0:00:12]} Qg5 {[%emt 0:00:55]} 24. Nh4 {[%emt 0:07:27]} Ng4 {[%emt 0:09:33]} 25. Rxe8 {[%emt 0:03:21]} Rxe8 {[%emt 0:01:13]} 26. Nxf5 {[%emt 0:01:33]} Rf8 {[%emt 0:05:07]} 27. Ne4 {[%emt 0:14:00]} Rxf5 {[%emt 0:01:19]} 28. Rxf5 {[%emt 0:00:27]} Qxf5 {[%emt 0:00:05]} 29. Nf6+ {[%emt 0:00:26]} Qxf6 {[%emt 0:00:05]} 30. Bxf6 {[%emt 0:00:06]} Nxf6 {[%emt 0:00:04]} 31. Qf5 {[%emt 0:00:12]} Nce8 {[%emt 0:02:55]} 32. Qc8 {[%emt 0:00:51]} Kf8 {[%emt 0:02:30]} 33. Qxb7 {[%emt 0:00:29]} Ne4 {[%emt 0:00:10]} 34. Qa7 {[%emt 0:00:24]} Bc3 {[%emt 0:00:28]} 35. Qxh7 {[%emt 0:01:25]} N8f6 {[%emt 0:00:05]} 36. Qc7 {[%emt 0:00:56]} Bd4 {[%emt 0:04:12]} 37. Qxa5 {[%emt 0:02:31]} Ng4 {[%emt 0:00:08]} 38. Qd8+ {[%emt 0:00:46]} Kg7 {[%emt 0:00:38]} 39. Kg2 {[%emt 0:00:41]} Ne3+ {[%emt 0:01:31]} 40. Kf3 {[%emt 0:00:00]} Nd2+ {[%emt 0:00:00]} 41. Ke2 {[%emt 0:01:00]} Nb1 {[%emt 0:01:35]} 42. a4 {[%emt 0:00:39]} Nc3+ {[%emt 0:00:45]} 43. Kd3 {[%emt 0:00:29]} Ned1 {[%emt 0:00:40]} 44. a5 {[%emt 0:00:39]} Nf2+ {[%emt 0:00:05]} 45. Kd2 {[%emt 0:02:00]} Nb1+ {[%emt 0:00:38]} 46. Ke2 {[%emt 0:00:27]} Nc3+ {[%emt 0:00:13]} 47. Kf1 {[%emt 0:00:25]} Nfd1 {[%emt 0:00:18]} 48. a6 {[%emt 0:02:33]} Ne3+ {[%emt 0:00:04]} 49. Ke1 {[%emt 0:00:24]} 1-0